bitfinex/quotes_ETHUSD_20241223
["timestamp","ask_amount","ask_price","bid_price","bid_amount"]
[1734997023946,2.91029,3436.1,3434.3,1.20887566]
[1734997023947,0.55,3436.1,3434.3,1.20887566]
[1734997024186,0.55,3435.5,3434.3,2.53877566]
[1734997024391,1.4029,3435.4,3434.4,2.9117]
[1734997024590,0.55,3435.3,3434.5,0.72637892]
[1734997024760,3.46098,3435.3,3434.6,1.20887566]
[1734997025964,0.55,3435.3,3434.0,4.3299]
[1734997026171,0.55,3435.3,3434.6,2.91146]
[1734997026792,0.55,3435.3,3434.7,2.91145]
[1734997026960,0.55,3435.3,3434.8,0.291145]
[1734997027551,0.55,3435.3,3434.4,2.91167]
[1734997027745,0.55,3435.3,3434.5,2.91159]
[1734997028147,0.55,3435.3,3434.2,2.9118]
[1734997028495,0.55,3435.3,3433.9,1.78547009]
[1734997028496,0.55,3434.6,3433.9,1.20887566]
[1734997028694,0.58222151,3434.6,3433.9,1.20887566]
[1734997028866,0.55,3434.2,3433.9,1.20887566]
[1734997029246,1.9042,3434.0,3433.9,1.20887566]
[1734997029883,1.9042,3434.0,3433.0,3.204121]
[1734997030149,0.55,3433.9,3433.1,3.0]
[1734997031202,0.55,3433.9,3433.4,2.91252]
[1734997031525,1.3542,3434.6,3433.6,2.91238]
[1734997031865,1.3542,3434.6,3433.8,2.91215]
[1734997032412,1.3542,3434.6,3433.6,2.91233]
[1734997032624,2.91163,3434.5,3433.7,0.291233]
[1734997032774,0.55,3434.3,3433.0,3.291291]
[1734997033300,3.4618,3434.3,3433.2,2.91271]
[1734997033465,0.55,3434.1,3433.3,4.12147566]
[1734997033988,0.55,3434.1,3433.5,2.91245]
[1734997034176,1.3542,3434.2,3433.3,1.20887566]
[1734997034368,1.3542,3434.2,3433.6,2.91235]
[1734997034885,1.3542,3434.2,3433.5,2.91241]
[1734997035286,1.3542,3434.2,3433.4,0.89349592]
[1734997035613,1.3542,3434.2,3433.6,2.91237]
[1734997036214,1.3542,3434.2,3433.4,0.89349592]
[1734997036518,1.3542,3434.2,3433.5,0.50150816]
[1734997036721,1.3542,3434.2,3433.5,3.41396816]
[1734997036886,1.3542,3434.2,3433.8,2.91222]
[1734997037086,1.3542,3434.2,3433.5,0.50150816]
[1734997037273,1.3542,3434.2,3433.5,2.91243]
[1734997038321,1.3542,3434.2,3433.6,1.0082721]
[1734997038817,1.3542,3434.2,3433.6,3.9206321]
[1734997039013,1.3542,3434.2,3433.6,1.0082721]
[1734997039014,0.55,3434.1,3433.6,1.0082721]
[1734997039401,0.55,3434.1,3433.3,7.12151566]
[1734997039711,0.55,3434.1,3433.4,0.89348292]
[1734997040619,0.55,3434.1,3433.4,1.90181225]
[1734997041438,0.55,3434.1,3433.4,4.81435225]
[1734997041737,0.55,3434.1,3433.4,3.80602292]
[1734997042435,1.3542,3434.2,3433.4,0.89348292]
[1734997042604,1.3542,3434.2,3433.2,1.20887566]
[1734997043132,1.3542,3434.2,3433.8,2.91222]
[1734997043839,1.3542,3434.2,3433.6,2.91233]
[1734997046595,2.91238,3433.7,3433.3,1.20887566]
[1734997046844,0.55,3433.4,3433.3,1.20887566]
[1734997046990,6.24618622,3433.4,3433.3,1.20887566]
[1734997047197,7.60548622,3433.4,3433.3,1.20887566]
[1734997048294,4.82186,3433.4,3433.3,1.20887566]
[1734997048633,7.85408151,3433.4,3433.3,1.20887566]
[1734997048869,7.82186,3433.4,3433.3,1.20887566]
[1734997048998,2.91281,3433.1,3432.3,1.00832154]
[1734997049494,0.55,3433.0,3432.3,1.00832154]
[1734997050114,0.55,3433.1,3432.3,1.00832154]
[1734997050414,0.55,3433.1,3432.4,0.51308472]
[1734997050796,0.55,3433.2,3432.4,2.91337]
[1734997051430,0.55,3433.2,3432.6,2.91323]
[1734997051744,0.55,3433.2,3432.6,2.91316]
[1734997052499,1.3593,3433.3,3432.7,2.91314]
[1734997052695,1.3593,3433.3,3432.8,2.91306]
[1734997052926,1.3593,3433.3,3432.9,3.204286]
[1734997053815,1.3593,3433.3,3432.9,0.291306]
[1734997054014,3.46229,3433.8,3432.7,2.91308]
[1734997054215,0.03222151,3433.7,3432.3,1.91035688]
[1734997054517,0.55,3433.2,3432.3,2.91347]
[1734997054866,0.55,3433.0,3432.2,4.20887566]
[1734997055045,0.55,3433.0,3432.2,7.12244566]
[1734997055240,1.3593,3432.9,3432.3,0.95130454]
[1734997055441,3.46307,3432.8,3432.2,1.20887566]
[1734997055827,3.46307,3432.8,3431.9,1.20887566]
[1734997056238,0.55,3432.8,3432.0,2.91374]
[1734997056460,0.55,3432.8,3432.1,2.91364]
[1734997056773,1.3593,3432.9,3432.3,2.91347]
[1734997056930,1.3593,3432.9,3432.4,0.291347]
[1734997057362,1.3593,3432.9,3432.5,2.91331]
[1734997057559,1.9093,3433.4,3432.6,2.91322]
[1734997057927,1.9093,3433.4,3432.4,2.91335]
[1734997058341,1.9093,3433.4,3432.5,2.91328]
[1734997058681,1.9093,3433.4,3432.6,2.91316]
[1734997058972,1.9093,3433.4,3432.7,0.291316]
[1734997059478,0.55,3433.2,3432.2,2.9135]
[1734997059674,2.91302,3432.9,3431.9,4.12262566]
[1734997059978,0.55,3432.8,3431.9,4.12262566]
[1734997060484,1.3329,3432.9,3431.9,1.20887566]
[1734997060772,3.46315,3432.8,3432.0,0.30221892]
[1734997060923,0.55,3432.8,3432.0,0.30221892]
[1734997061127,1.3329,3432.9,3432.3,2.91343]
[1734997061328,1.3329,3432.9,3432.5,2.91332]
[1734997062727,1.3329,3432.9,3431.8,2.91385]
[1734997063069,1.3329,3432.9,3432.1,2.91365]
[1734997063251,1.3329,3432.9,3431.8,2.91385]
[1734997063459,1.3329,3432.9,3432.1,2.9136]
[1734997063778,0.55,3432.8,3431.9,0.85215252]
[1734997064073,0.55,3432.8,3432.1,2.91366]
[1734997065070,0.55,3432.8,3432.0,3.0]
[1734997065271,0.55,3432.8,3432.2,2.9135]
[1734997065578,0.55,3432.8,3432.3,0.29135]
[1734997065783,0.55,3432.8,3431.8,2.91392]
[1734997066375,0.55,3432.8,3431.9,2.9138]
[1734997066574,0.55,3432.8,3431.8,2.9139]
[1734997066726,1.3329,3432.7,3431.8,2.9139]
[1734997066931,0.55,3432.6,3431.8,2.9139]
[1734997067129,0.55,3432.6,3431.9,0.42719752]
[1734997067484,1.3329,3432.2,3431.6,0.19166616]
[1734997067663,1.8829,3431.7,3431.6,0.19166616]
[1734997067870,4.82912151,3431.7,3431.1,1.20887566]
[1734997068031,1.91512151,3431.7,3431.1,1.20887566]
[1734997068236,2.91434,3431.4,3431.1,1.20887566]
[1734997068444,1.8829,3431.2,3431.1,1.20887566]
[1734997068847,1.3329,3431.2,3431.1,4.12338566]
[1734997069078,1.8829,3431.9,3431.1,2.04432071]
[1734997069334,1.8829,3431.9,3431.2,2.91435]
[1734997070179,1.8829,3431.9,3431.4,2.91425]
[1734997070399,1.8829,3431.9,3431.0,2.91458]
[1734997070569,1.8829,3431.9,3431.0,0.416418]
[1734997070875,1.8829,3431.9,3431.1,2.91447]
[1734997071097,1.8829,3431.9,3431.4,2.91418]
[1734997071249,1.3329,3431.9,3431.6,2.91407]
[1734997071447,1.3329,3431.9,3431.5,2.91411]
[1734997071665,1.3329,3431.9,3431.7,2.91392]
[1734997071986,1.3329,3431.9,3431.7,3.205312]
[1734997072329,1.3329,3431.9,3430.7,1.2496]
[1734997072573,0.55,3431.8,3430.7,4.2496]
[1734997073580,0.55,3431.8,3431.3,2.91431]
[1734997075189,1.3329,3431.9,3430.9,3.0]
[1734997075328,1.3329,3431.9,3431.0,1.016437]
[1734997075533,1.3329,3431.9,3431.5,2.9141]
[1734997076798,1.3329,3431.9,3431.2,2.91443]
[1734997077002,1.3329,3431.9,3431.6,2.91408]
[1734997077173,1.3329,3431.9,3431.6,2.91404]
[1734997077391,1.3329,3431.9,3431.7,0.291404]
[1734997077767,1.3329,3431.9,3431.8,2.91392]
[1734997080275,1.3329,3431.9,3431.7,0.291404]
[1734997080462,0.55,3431.8,3431.1,2.91451]
[1734997081302,0.55,3431.8,3431.2,2.91441]
[1734997081664,0.55,3431.8,3431.3,2.91428]
[1734997082858,0.55,3431.8,3431.4,2.91425]
[1734997083062,1.3329,3431.9,3431.5,2.91413]
[1734997083276,1.3329,3431.9,3431.8,2.91392]
[1734997083682,1.2496,3432.4,3431.8,2.91392]
[1734997084100,1.2496,3432.4,3431.6,0.291413]
[1734997084461,1.2496,3432.4,3431.6,3.205503]
[1734997084805,1.28182151,3432.4,3431.6,3.205503]
[1734997085018,1.2496,3432.1,3431.0,2.22531266]
[1734997085161,1.2496,3431.9,3431.0,2.22531266]
[1734997085361,0.55,3431.8,3431.0,2.22531266]
[1734997085820,0.58222151,3431.8,3431.0,1.016437]
[1734997086665,0.55,3431.8,3431.0,1.016437]
[1734997086866,0.58222151,3431.8,3431.0,1.016437]
[1734997087368,4.17211,3431.7,3430.7,2.91483]
[1734997087571,4.17211,3431.7,3430.4,1.2901]
[1734997087572,0.58222151,3431.6,3430.4,1.2901]
[1734997087803,3.49632151,3431.6,3430.5,2.91496]
[1734997088105,3.49632151,3431.6,3430.6,2.9149]
[1734997088807,0.58222151,3431.6,3430.7,2.91484]
[1734997088961,0.58222151,3431.6,3430.8,3.206184]
[1734997089158,0.55,3431.6,3430.8,3.206184]
[1734997089403,0.55,3431.6,3430.8,0.291484]
[1734997089557,0.55,3431.6,3430.9,2.91464]
[1734997089762,0.55,3431.6,3430.4,4.2901]
[1734997089993,0.55,3431.6,3431.0,2.91456]
[1734997091312,0.55,3431.6,3430.4,4.20887566]
[1734997091313,0.55,3431.2,3430.4,4.20887566]
[1734997091479,0.55,3431.0,3430.5,0.89373092]
[1734997093278,1.2581,3431.1,3430.6,2.94400785]
[1734997093472,1.2581,3431.1,3430.6,2.91486]
[1734997093692,1.2581,3431.1,3430.7,2.91483]
[1734997094478,1.2581,3431.1,3430.3,3.0]
[1734997094686,1.8081,3431.7,3430.8,2.91475]
[1734997094916,1.8081,3431.7,3430.8,3.206225]
[1734997095547,2.91411,3431.6,3430.8,0.291475]
[1734997095812,0.55,3431.5,3430.8,0.291475]
[1734997095966,0.55,3431.5,3430.6,2.91486]
[1734997096712,0.55,3431.5,3430.8,2.91475]
[1734997096872,0.55,3431.6,3430.8,2.91475]
[1734997097072,0.55,3431.6,3430.9,0.291475]
[1734997097767,0.55,3431.6,3430.6,2.91493]
[1734997097768,0.55,3431.4,3430.6,2.91493]
[1734997098220,4.17289,3430.8,3430.4,1.20887566]
[1734997098514,4.72312,3430.5,3430.4,1.20887566]
[1734997099326,7.75534151,3430.5,3430.4,1.20887566]
[1734997099473,7.72312,3430.5,3430.4,1.20887566]
[1734997099677,7.72312,3430.5,3429.3,1.20887566]
[1734997099678,2.91528,3430.2,3429.3,1.20887566]
[1734997099914,4.17362,3430.0,3429.3,1.20887566]
[1734997100126,0.58222151,3429.9,3429.3,1.20887566]
[1734997100276,1.2581,3429.4,3429.3,1.20887566]
[1734997100477,7.51105452,3429.4,3429.3,1.20887566]
[1734997100723,4.59509452,3429.4,3429.3,1.20887566]
[1734997101251,1.8081,3429.4,3429.3,1.20887566]
[1734997101734,0.55,3429.3,3428.7,2.91653]
[1734997101881,0.55,3429.3,3428.8,0.41254057]
[1734997102082,0.58222151,3429.3,3428.8,0.41254057]
[1734997102283,0.55,3429.3,3428.8,0.41254057]
[1734997103514,0.55,3429.3,3428.9,2.91631]
[1734997103696,0.55,3429.3,3428.8,0.41254057]
[1734997103697,0.55,3429.3,3429.0,3.24916506]
[1734997104113,0.55,3429.3,3428.1,4.084565]
[1734997104324,3.33784134,3429.8,3428.1,2.91706]
[1734997104325,0.55,3429.1,3428.1,2.91706]
[1734997104523,0.55,3429.1,3428.3,3.0]
[1734997104723,0.58222151,3429.1,3428.0,3.4913597]
[1734997104932,0.58222151,3429.1,3427.8,4.084935]
[1734997105139,1.2681,3428.7,3427.9,0.52938107]
[1734997105436,1.2681,3428.7,3427.6,2.91741]
[1734997105437,3.49886151,3428.6,3427.6,2.91741]
[1734997105638,0.55,3428.4,3427.6,2.91741]
[1734997106133,0.58222151,3428.4,3427.6,2.91741]
[1734997106832,0.55,3428.4,3427.6,2.91741]
[1734997106986,0.55,3428.4,3428.0,2.91711]
[1734997107182,1.2681,3428.5,3428.2,2.91694]
[1734997107415,1.2681,3429.2,3428.1,0.291711]
[1734997107730,1.30032151,3429.2,3428.1,0.291711]
[1734997107916,1.2681,3429.2,3428.5,2.91668]
[1734997108713,0.55,3429.1,3428.5,2.91668]
[1734997108916,1.2681,3429.2,3428.7,2.91655]
[1734997109850,1.2681,3429.2,3428.6,0.291668]
[1734997110003,1.2681,3429.2,3428.8,2.91645]
[1734997110205,0.55,3429.1,3428.8,2.91645]
[1734997110850,1.2681,3429.2,3428.6,0.291668]
[1734997110851,1.2681,3429.2,3428.9,2.91634]
[1734997111020,1.2681,3429.2,3429.0,0.291634]
[1734997111215,1.2681,3429.2,3429.0,3.207874]
[1734997111417,1.2681,3429.9,3429.0,0.291634]
[1734997111602,1.2681,3429.9,3429.7,2.9157]
[1734997112263,1.2681,3429.9,3429.8,2.91562]
[1734997112407,2.91461,3431.0,3429.8,2.91554]
[1734997112408,1.2681,3430.3,3429.8,2.91554]
[1734997112909,1.2681,3430.3,3429.9,2.91552]
[1734997113249,1.2681,3430.3,3429.4,4.12081]
[1734997113426,1.2681,3430.3,3429.5,3.327931]
[1734997114048,1.2681,3430.3,3429.6,2.91576]
[1734997114261,0.55,3430.2,3429.5,3.327941]
[1734997115750,1.2681,3430.1,3429.1,0.57453292]
[1734997115949,1.2681,3429.9,3428.6,0.88752329]
[1734997116124,0.55,3429.8,3429.1,2.9162]
[1734997116324,0.55,3429.8,3429.2,0.29162]
[1734997116719,0.55,3429.8,3429.2,3.20772]
[1734997117124,0.55,3429.8,3429.2,0.29162]
[1734997117329,0.58222151,3429.8,3428.8,2.91639]
[1734997117711,0.58222151,3429.8,3428.9,2.91638]
[1734997117908,0.55,3429.8,3428.6,0.291668]
[1734997118253,0.55,3429.8,3428.9,2.9163]
[1734997118458,0.55,3429.8,3428.7,3.0]
[1734997118758,0.55,3429.8,3429.1,2.91621]
[1734997119113,0.58222151,3429.8,3428.5,0.57640237]
[1734997119310,0.58222151,3429.8,3428.9,2.91635]
[1734997119629,0.55,3429.8,3429.0,0.291635]
[1734997122472,0.55,3429.6,3429.0,0.291635]
[1734997122819,0.55,3429.4,3428.5,3.49309237]
[1734997123113,0.03222151,3429.3,3428.5,2.91669]
[1734997123317,0.55,3429.1,3428.5,2.91669]
[1734997123561,0.58222151,3429.1,3428.3,2.91687]
[1734997123743,0.55,3429.1,3428.1,0.88487141]
[1734997124062,0.55,3429.1,3428.3,3.0]
[1734997124365,0.55,3429.1,3428.3,2.91688]
[1734997125363,0.55,3429.1,3428.2,3.12593714]
[1734997125533,0.55,3429.1,3428.3,3.0]
[1734997125862,4.2681,3430.0,3428.6,1.2049]
[1734997126063,1.2681,3430.0,3428.7,0.02915687]
[1734997126370,1.2681,3430.0,3429.9,2.91553]
[1734997126569,1.2681,3430.6,3429.9,0.291553]
[1734997126725,0.03222151,3430.5,3429.6,2.91577]
[1734997127059,1.2681,3430.6,3429.7,2.91566]
[1734997127266,1.30032151,3430.6,3429.7,2.91566]
[1734997127419,1.2681,3430.6,3429.8,2.91558]
[1734997127821,0.55,3430.5,3429.5,2.91587]
[1734997128154,0.55,3430.5,3429.6,3.47063932]
[1734997128315,0.55,3430.5,3429.8,2.91555]
[1734997128790,0.55,3430.3,3429.6,0.47063932]
[1734997128951,1.2681,3430.0,3428.8,3.0]
[1734997129259,0.55,3429.9,3429.1,3.0]
[1734997129464,0.55,3429.9,3428.9,5.91638]
[1734997129764,0.55,3429.9,3429.2,2.91611]
[1734997131263,0.55,3429.9,3429.0,2.9163]
[1734997131485,0.55,3429.9,3429.1,0.59163]
[1734997131656,0.55,3429.9,3428.7,1.2049]
[1734997131856,0.55,3429.9,3429.3,2.91597]
[1734997132469,0.55,3429.9,3428.9,0.57704219]
[1734997132672,1.2681,3430.0,3429.7,2.91563]
[1734997132854,1.2681,3430.0,3429.8,2.91559]
[1734997133070,1.1704,3430.7,3429.9,0.291559]
[1734997133287,1.1704,3430.7,3429.9,3.207079]
[1734997133490,1.1704,3430.5,3429.9,0.291559]
[1734997133660,1.1704,3430.5,3429.5,2.91584]
[1734997133855,1.1704,3430.5,3429.7,2.91563]
[1734997134262,1.1704,3430.5,3429.2,2.91613]
[1734997134457,1.1704,3430.5,3429.3,0.414003]
[1734997134658,1.1704,3430.5,3429.7,2.9157]
[1734997135482,1.1704,3430.5,3429.4,0.02915164]
[1734997135788,1.1704,3431.1,3430.2,2.91526]
[1734997135995,1.1704,3431.1,3429.9,4.13942]
[1734997136195,1.1704,3431.1,3430.3,2.91519]
[1734997137295,1.1704,3430.6,3429.3,1.62287866]
[1734997137480,0.55,3430.1,3429.3,1.20887566]
[1734997137679,0.55,3430.1,3429.4,2.91595]
[1734997138860,1.1704,3430.0,3429.1,0.58654093]
[1734997139068,1.1704,3430.0,3429.4,2.91594]
[1734997139693,1.1704,3430.0,3429.2,2.91609]
[1734997139897,0.55,3429.9,3428.9,2.9163]
[1734997140119,0.55,3429.7,3428.7,1.20887566]
[1734997140300,0.58222151,3429.7,3428.9,2.91638]
[1734997140597,0.55,3429.7,3428.9,3.86756736]
[1734997141144,1.1704,3429.4,3428.9,0.95118736]
[1734997141375,1.1704,3429.4,3428.3,1.20887566]
[1734997141745,1.1704,3429.4,3428.3,4.20887566]
[1734997142295,0.55,3430.2,3429.3,2.91604]
[1734997142455,0.55,3430.2,3429.1,1.2239]
[1734997142658,1.1704,3430.3,3429.5,2.9158]
[1734997142883,1.1704,3430.3,3429.6,0.29158]
[1734997144204,0.55,3430.2,3429.5,2.9158]
[1734997149211,1.1704,3430.3,3429.6,2.91579]
[1734997149730,1.1704,3430.3,3429.1,1.2239]
[1734997149875,1.1704,3430.3,3430.0,2.91543]
[1734997150251,3.33510078,3430.9,3430.3,2.91516]
[1734997150252,1.2178,3430.9,3430.3,2.91516]
[1734997150517,1.2178,3430.9,3430.5,2.91501]
[1734997152173,1.2178,3430.9,3430.3,0.291516]
[1734997152407,0.55,3430.7,3429.8,5.91561]
[1734997152586,1.2178,3430.7,3430.0,1.20887566]
[1734997152788,1.2178,3430.4,3430.0,1.20887566]
[1734997152989,0.58222151,3430.3,3430.0,1.20887566]
[1734997153573,0.55,3430.3,3429.6,2.91571]
[1734997153774,0.55,3430.3,3429.7,0.291571]
[1734997154224,0.58222151,3430.3,3429.4,2.91594]
[1734997155512,1.2178,3430.0,3429.3,1.20887566]
[1734997155679,0.55,3429.9,3429.3,1.20887566]
[1734997155873,1.2178,3429.6,3429.3,1.20887566]
[1734997156114,0.55,3429.5,3429.3,1.20887566]
[1734997156317,2.91596,3429.4,3429.3,1.20887566]
[1734997156579,0.55,3429.5,3429.1,1.20887566]
[1734997157524,0.55,3429.5,3428.8,2.91644]
[1734997157731,0.55,3429.5,3428.8,3.43004816]
[1734997158086,0.58222151,3429.5,3428.8,3.43004816]
[1734997158595,0.58222151,3429.5,3428.8,0.51360816]
[1734997158927,0.58222151,3429.5,3428.6,2.91661]
[1734997160627,1.2178,3429.4,3428.6,2.91661]
[1734997160998,1.2178,3429.4,3428.6,2.91656]
[1734997162293,0.58222151,3429.5,3428.4,1.20887566]
[1734997162294,1.2424,3429.2,3428.4,1.20887566]
[1734997162478,3.46639,3428.9,3428.4,1.20887566]
[1734997162680,0.55,3428.6,3428.4,1.20887566]
[1734997163108,1.7924,3428.5,3428.4,1.20887566]
[1734997163696,1.7924,3428.5,3427.8,2.52634125]
[1734997163901,0.55,3428.4,3427.8,5.44361125]
[1734997164307,1.2424,3428.5,3427.8,2.52634125]
[1734997164517,1.2424,3428.5,3427.9,0.37352169]
[1734997164703,0.03222151,3429.4,3428.2,2.91689]
[1734997164704,1.7924,3429.3,3428.2,2.91689]
[1734997165028,1.7924,3429.3,3428.4,2.91679]
[1734997165332,1.7924,3429.3,3428.0,1.1744]
[1734997165699,1.7924,3429.3,3428.6,2.91662]
[1734997166225,1.7924,3429.3,3428.6,0.291662]
[1734997166380,1.7924,3429.3,3428.0,2.38327566]
[1734997166381,0.55,3429.1,3428.1,2.91704]
[1734997166604,1.2424,3428.7,3428.0,1.20887566]
[1734997166786,0.55,3428.5,3428.0,1.20887566]
[1734997166983,0.55,3428.5,3428.1,1.20887566]
[1734997167634,0.55,3428.6,3428.1,1.20887566]
[1734997168129,0.55,3428.6,3427.6,3.02218917]
[1734997168130,0.55,3428.6,3427.5,1.20887566]
[1734997168331,0.55,3428.6,3428.0,2.91707]
[1734997169085,0.55,3428.6,3427.8,2.91729]
[1734997169332,1.2424,3428.5,3427.5,1.20887566]
[1734997169486,3.33570521,3428.0,3427.5,1.20887566]
[1734997169692,0.55,3427.7,3427.5,1.20887566]
[1734997170696,0.55,3427.7,3426.8,4.12704566]
[1734997170894,0.55,3427.5,3426.9,0.59403592]
[1734997171128,0.55,3427.5,3426.8,4.12704566]
[1734997171535,0.55,3427.5,3426.8,1.20887566]
[1734997172103,0.55,3427.5,3426.3,3.59628445]
[1734997172104,0.55,3427.6,3426.3,0.57409528]
[1734997172302,0.55,3427.4,3426.4,2.9185]
[1734997172623,0.55,3427.6,3426.3,0.57409528]
[1734997172829,0.55,3427.7,3427.1,2.91786]
[1734997173996,1.2424,3427.8,3426.6,1.1744]
[1734997174237,1.2424,3427.8,3427.2,2.91775]
[1734997174436,1.2424,3427.8,3426.6,1.1744]
[1734997174738,1.2424,3427.8,3427.3,2.91773]
[1734997175097,1.2424,3427.8,3427.3,3.209503]
[1734997175292,1.2424,3427.8,3427.3,0.291773]
[1734997175493,1.2424,3427.8,3427.5,2.91753]
[1734997176110,1.2424,3427.8,3426.9,2.918]
[1734997176320,1.2424,3427.8,3427.1,2.91787]
[1734997176524,1.2424,3427.8,3426.7,2.91824]
[1734997176732,1.2424,3427.8,3427.3,2.91773]
[1734997178037,1.2424,3427.8,3426.8,2.91817]
[1734997178236,0.55,3427.7,3426.7,3.57785841]
[1734997178543,0.55,3427.5,3426.7,0.57785841]
[1734997181006,1.1409,3427.4,3426.7,0.57785841]
[1734997181208,0.55,3427.3,3426.7,0.57785841]
[1734997181423,0.55,3427.3,3426.7,3.49610841]
[1734997181840,0.55,3427.3,3426.8,0.34961084]
[1734997181999,0.55,3427.3,3426.7,2.91825]
[1734997184047,1.1409,3427.4,3426.8,2.91809]
[1734997185052,1.1409,3427.4,3426.9,2.918]
[1734997186235,1.1409,3427.4,3426.7,2.91824]
[1734997186448,0.55,3427.3,3426.2,1.1257]
[1734997186759,0.55,3427.3,3426.4,2.91848]
[1734997187270,0.55,3427.3,3426.4,3.38133582]
[1734997187472,0.55,3427.3,3426.5,2.91842]
[1734997187758,1.1409,3427.4,3426.4,0.46285582]
[1734997187964,1.1409,3427.4,3426.2,1.1257]
[1734997187965,1.1409,3428.1,3427.3,2.91772]
[1734997188175,1.1409,3428.1,3427.4,2.91764]
[1734997188471,1.1409,3428.1,3427.7,2.9174]
[1734997188625,1.1409,3428.1,3427.2,2.91779]
[1734997188826,1.1409,3428.1,3427.3,0.291779]
[1734997189729,1.1409,3428.1,3427.6,2.91748]
[1734997189940,0.55,3428.0,3427.6,2.91748]
[1734997190170,0.55,3428.0,3427.7,2.9174]
[1734997190469,1.1409,3428.1,3427.9,2.91717]
[1734997190773,1.1409,3428.1,3428.0,0.291717]
[1734997191336,1.1409,3428.1,3427.8,2.91731]
[1734997191743,1.1409,3428.1,3427.9,2.91723]
[1734997192127,1.1409,3428.1,3427.3,3.291779]
[1734997192329,1.1409,3428.1,3427.6,2.91748]
[1734997192541,1.1409,3428.1,3427.3,0.291779]
[1734997192784,1.1409,3428.1,3427.8,2.91724]
[1734997193774,1.1409,3428.1,3427.9,2.91722]
[1734997195797,1.1409,3428.1,3427.3,2.91774]
[1734997195984,1.1409,3428.1,3427.7,2.91738]
[1734997197085,1.1409,3428.1,3427.2,0.57718673]
[1734997197374,1.7683,3428.8,3428.0,2.91715]
[1734997199221,1.7683,3428.8,3427.3,0.35771867]
[1734997199222,1.80052151,3428.8,3427.3,1.49481867]
[1734997199408,0.55,3428.6,3427.8,2.9173]
[1734997199722,2.91726,3427.9,3427.2,0.57718673]
[1734997199862,2.91759,3427.5,3426.9,1.20887566]
[1734997200062,0.55,3427.2,3427.0,1.20887566]
[1734997201851,0.55,3427.2,3426.4,2.9185]
[1734997202147,0.55,3427.2,3426.0,1.7853525]
[1734997203047,0.55,3427.2,3426.4,2.91844]
[1734997203231,1.2183,3427.3,3426.0,1.7853525]
[1734997203232,1.2183,3427.3,3426.5,0.291844]
[1734997203430,1.2183,3427.3,3426.2,0.02918175]
[1734997203614,1.2183,3427.8,3426.8,1.1371]
[1734997203821,1.2183,3427.8,3427.0,2.91799]
[1734997204623,0.03222151,3427.7,3426.5,2.91835]
[1734997204849,4.68589,3427.5,3426.3,2.91858]
[1734997205146,0.03222151,3427.4,3426.5,1.20887566]
[1734997205349,0.55,3427.3,3426.5,1.20887566]
[1734997205533,1.2183,3427.5,3426.8,2.91809]
[1734997205848,1.2183,3427.5,3426.9,2.91804]
[1734997206056,1.2183,3427.5,3427.0,0.291804]
[1734997206425,1.2183,3427.5,3427.2,2.9178]
[1734997206776,1.2183,3427.5,3427.0,0.291804]
[1734997206947,1.2183,3427.5,3427.0,3.209804]
[1734997208871,1.1585,3428.0,3427.0,0.291804]
[1734997209071,1.1585,3428.0,3426.8,4.01402]
[1734997209259,1.1585,3428.0,3427.1,2.91783]
[1734997209260,0.03222151,3427.9,3427.1,2.91783]
[1734997209656,0.03222151,3427.9,3426.9,5.91807]
[1734997209856,1.1585,3428.0,3426.9,9.65287739]
[1734997210059,1.1585,3428.0,3426.9,6.65287739]
[1734997210406,2.91752,3427.6,3426.9,3.73480739]
[1734997210708,0.55,3427.2,3426.9,3.73480739]
[1734997211393,0.55,3427.2,3426.6,1.20887566]
[1734997211983,0.55,3427.2,3426.6,4.12713566]
[1734997212186,0.55,3427.2,3426.7,2.91823]
[1734997212405,1.1585,3427.3,3426.4,2.5276412]
[1734997212406,1.1585,3427.3,3426.5,3.34151648]
[1734997212614,0.55,3427.5,3426.9,2.91807]
[1734997212822,1.1585,3427.6,3426.7,3.0]
[1734997213053,1.1585,3427.6,3427.1,2.91787]
[1734997213221,1.1585,3427.6,3427.2,0.291787]
[1734997216227,2.91749,3427.6,3426.9,1.20887566]
[1734997216396,1.1585,3427.3,3426.9,1.20887566]
[1734997217900,1.1585,3427.3,3426.7,2.52924333]
[1734997218648,1.1585,3427.3,3426.8,2.91816]
[1734997219473,1.1585,3427.3,3427.0,2.91799]
[1734997219619,1.1585,3427.8,3427.1,0.291799]
[1734997220055,1.1585,3427.8,3426.7,1.01169733]
[1734997220366,2.35447372,3428.1,3427.4,2.91758]
[1734997220709,2.35447372,3428.1,3426.9,2.91808]
[1734997220912,1.1585,3428.1,3427.7,2.91739]
[1734997222212,1.1585,3428.1,3427.4,1.0959]
[1734997222432,1.1585,3428.1,3427.5,0.28854449]
[1734997223346,0.55,3428.0,3427.3,1.20887566]
[1734997223513,0.55,3428.0,3427.5,2.91756]
[1734997223713,1.1585,3428.1,3427.6,2.52822053]
[1734997224110,1.1585,3428.1,3427.7,2.9174]
[1734997224315,3.0,3428.7,3427.8,2.9173]
[1734997224316,1.1603,3428.6,3427.8,2.9173]
[1734997224515,0.55,3428.5,3427.8,3.57222205]
[1734997225832,1.1603,3428.6,3427.8,0.65492205]
[1734997226032,1.1603,3428.6,3428.1,2.91701]
[1734997226232,1.1603,3428.6,3427.8,0.65492205]
[1734997226559,4.07711,3428.4,3427.4,4.20887566]
[1734997226869,1.1603,3428.2,3427.4,1.20887566]
[1734997227033,4.10954151,3428.2,3427.4,1.20887566]